[Event "FIDE WCCC U10 2018"]
[Site "Santiago de Compostela"]
[Date "2018.11.14"]
[Round "10"]
[White "Seemann, Jakub"]
[Black "Li Yihao"]
[Result "1/2-1/2"]
[ECO "B96"]
[WhiteElo "1869"]
[BlackElo "1601"]
[Annotator "NA RC"]
[PlyCount "104"]
[EventDate "2018.11.04"]
[EventType "swiss"]
[EventCountry "ESP"]
[SourceTitle "playchess.com"]
[Source "ChessBase"]
[SourceQuality "1"]
[TimeControl "40/5400+30:1800+30"]

{[%evp 24,101,-11,-51,-46,-45,-41,-53,-56,-62,-39,-36,0,32767,14,32767,25,21,45,-27,32767,7,33,35,50,39,54,59,60,41,46,32,59,32767,32767,51,70,10,37,15,21,15,29,32767,41,32767,32767,32767,32767,11,10,7,5,9,10,20,12,32767,10,8,32767,11,23,25,21,18,32767,20,32767,0,0,0,0,5,32767,32767,0,0,0,0]} 1. e4 {[%emt 0:00:00]} c5 {[%emt 0:00:00]} 2. Nf3 {[%emt 0:00:00]} d6 {[%emt 0:00:02]} 3. d4 {[%emt 0:00:00]} cxd4 {[%emt 0:00:08]} 4. Nxd4 {[%emt 0:00:03]} Nf6 {[%emt 0:00:09]} 5. Nc3 {[%emt 0:00:08]} a6 {[%emt 0:00:07]} 6. Bg5 {[%emt 0:00:07]} e6 {[%emt 0:00:08]} 7. f4 {[%emt 0:00:06]} h6 {[%emt 0:00:06]} 8. Bh4 {[%emt 0:00:04]} Qb6 {[%emt 0:00:05]} 9. Qd3 {[%emt 0:01:25] B96: Sicilian Najdorf: 6 Bg5 e6 7 f4, lines other than 7...Qb6 and 7...Be7} (9. a3 Be7 10. Bf2 Qc7 11. Qf3 Nbd7 12. O-O-O b5 13. g4 Bb7 14. h4 Nc5 15. Bd3 h5 16. g5 Ng4 17. Rhg1 {½-½ (25) Grischuk,A (2766)-Vachier Lagrave,M (2779) Saint Louis 2018}) 9... Qxb2 {[%emt 0:02:59]} 10. Rb1 {[%emt 0:00:11]} Qa3 {[%emt 0:00:08]} 11. Bxf6 {[%emt 0:04:00]} gxf6 {[%emt 0:00:11]} 12. f5 {[%emt 0:01:34]} Nc6 {[%emt 0:04:52]} 13. fxe6 $146 {[%emt 0:03:48]} ({Predecessor:} 13. Nxc6 bxc6 14. Qf3 Qc5 15. fxe6 Bxe6 16. Qxf6 Rg8 {0-1 (29) Xylogiannopoulos,A (2104)-Schiendorfer,E (2349) Plovdiv 2012}) 13... fxe6 {[%emt 0:01:07]} 14. Nxc6 {[%emt 0:01:16]} bxc6 {[%emt 0:00:14]} 15. Be2 {[%emt 0:03:30]} Qc5 {[%emt 0:05:15]} 16. Nd1 {[%emt 0:21:34]} Rg8 {[%emt 0:23:42]} 17. Ne3 {[%emt 0:30:33]} Qa5+ {[%emt 0:02:03]} 18. c3 {[%emt 0:00:29]} Qg5 {[%emt 0:11:50]} 19. Bf3 {[%emt 0:04:06]} Bd7 {[%emt 0:02:21]} 20. O-O {[%emt 0:04:07]} Rg7 {[%emt 0:11:49]} 21. Rfd1 {[%emt 0:02:11]} Kf7 {[%emt 0:01:30]} 22. Nc4 {[%emt 0:03:26]} Qc5+ {[%emt 0:00:44]} 23. Kh1 {[%emt 0:00:07]} Rd8 {[%emt 0:11:25]} 24. Nxd6+ {[%emt 0:01:31]} Bxd6 {[%emt 0:00:48]} 25. Qxd6 {[%emt 0:00:07]} Qxd6 {[%emt 0:00:07]} 26. Rxd6 {[%emt 0:00:07]} Ke7 {[%emt 0:00:04]} 27. Rbd1 {[%emt 0:01:09]} Rgg8 {[%emt 0:01:00]} 28. Kg1 {[%emt 0:02:41]} a5 {[%emt 0:00:18]} 29. Kf2 {[%emt 0:00:36]} c5 {[%emt 0:00:15]} 30. Ke3 {[%emt 0:01:55]} (30. e5 $14 fxe5 31. Ra6) 30... Ba4 {[%emt 0:01:17]} 31. Rxd8 {[%emt 0:00:33]} Rxd8 {[%emt 0:00:03]} 32. Rb1 {[%emt 0:01:36]} Be8 {[%emt 0:02:50]} 33. Rb6 {[%emt 0:01:26]} Rd6 {[%emt 0:00:12]} 34. Rb8 {[%emt 0:00:57]} Rd8 {[%emt 0:00:05]} 35. Rxd8 {[%emt 0:00:53]} Kxd8 {[%emt 0:00:02]} 36. e5 {[%emt 0:00:39]} f5 {[%emt 0:01:20]} 37. Kf4 {[%emt 0:10:50]} Ke7 {[%emt 0:00:20]} 38. g3 {[%emt 0:03:48]} Bf7 {[%emt 0:03:50]} 39. Bc6 {[%emt 0:02:14]} Bh5 {[%emt 0:00:14]} 40. Ke3 {[%emt 0:00:00]} Kd8 {[%emt 0:00:00]} 41. Kd3 {[%emt 0:01:35]} Kc7 {[%emt 0:02:10]} 42. Ba4 {[%emt 0:00:59]} Bg6 {[%emt 0:00:42]} 43. Kc4 {[%emt 0:00:17]} Kb6 {[%emt 0:01:04]} 44. h3 {[%emt 0:02:02]} Bh5 {[%emt 0:00:39]} 45. Bd7 {[%emt 0:00:48]} Bf7 {[%emt 0:00:15]} 46. a4 {[%emt 0:02:30]} Kc7 {[%emt 0:00:29]} 47. Bb5 {[%emt 0:02:45]} Kb6 {[%emt 0:00:02]} 48. Kd3 {[%emt 0:00:48]} Kc7 {[%emt 0:02:58]} 49. Ke3 {[%emt 0:00:29]} Kd8 {[%emt 0:00:20]} 50. Kf4 {[%emt 0:00:16]} Bg6 {[%emt 0:00:42]} 51. h4 $11 {[%emt 0:01:52]} Bh5 {[%emt 0:01:23]} 52. Bc4 {[%emt 0:01:45]} Kd7 {[%emt 0:02:09]} 1/2-1/2

[Event "FIDE WCCC U10 2018"]
[Site "Santiago de Compostela"]
[Date "2018.11.14"]
[Round "10"]
[White "Cnejev, Vladimir-Alexandru"]
[Black "Shivakumar, Shawnak"]
[Result "1/2-1/2"]
[ECO "B30"]
[WhiteElo "1810"]
[BlackElo "1688"]
[Annotator "NA RC"]
[PlyCount "73"]
[EventDate "2018.11.04"]
[EventType "swiss"]
[EventCountry "ESP"]
[SourceTitle "playchess.com"]
[Source "ChessBase"]
[SourceQuality "1"]
[TimeControl "40/5400+30:1800+30"]

{[%evp 8,71,22,17,36,32767,32767,-14,460,1,32767,32767,32767,32767,32767,32767,32767,32767,32767,32767,-25,-35,0,-24,-25,-73,-8,-10,32767,-19,-6,-24,0,0,10,0,50,32767,10,-31,8,32767,32767,32767,12,32767,35,0,32767,0,0,0,32767,32767,-3,0,32767,32767,32767,-14,-22,32767,32767,32767,-17,-20]} 1. e4 {[%emt 0:00:00]} c5 {[%emt 0:00:00]} 2. Nf3 {[%emt 0:00:00]} Nc6 {[%emt 0:00:00]} 3. c3 {[%emt 0:00:00]} d5 {[%emt 0:00:00]} 4. exd5 {[%emt 0:00:00]} Qxd5 {[%emt 0:00:00]} 5. d4 {[%emt 0:00:00] LiveBook: 2295 Games} cxd4 {[%emt 0:00:00]} 6. cxd4 e5 {[%emt 0:01:00]} 7. dxe5 {[%emt 0:13:10]} (7. Nc3 $14 Bb4 8. Bd2 Bxc3 9. Bxc3) 7... Qxd1+ {[%emt 0:00:25]} 8. Kxd1 {[%emt 0:00:01]} Bg4 {[%emt 0:00:11]} 9. Bb5 {[%emt 0:01:33] B22: Sicilian: 2 c3} (9. Be2 O-O-O+ 10. Bd2 Bxf3 11. gxf3 Nxe5 12. Kc2 Bc5 13. Be3 Bxe3 14. fxe3 Ne7 15. f4 N5c6 16. Nc3 Nb4+ 17. Kb3 Nbd5 18. Bg4+ Kb8 19. Rhe1 f5 20. Bf3 Nxc3 21. Kxc3 Rd6 {½-½ (21) Jerez Perez,A (2397)-Munoz Pantoja,M (2452) Mollet del Valles 2016}) 9... O-O-O+ {[%emt 0:00:19]} 10. Bd2 {[%emt 0:03:25]} Bxf3+ {[%emt 0:01:15]} 11. gxf3 {[%emt 0:00:07]} Nxe5 {[%emt 0:00:07]} 12. Be2 {[%emt 0:00:15]} Nf6 $146 {[%emt 0:00:50]} ({Predecessor:} 12... Bc5 13. Ke1 Nf6 14. Be3 Rhe8 15. Bxc5 Nd3+ 16. Kf1 Nxc5 {½-½ (71) Khamrakulov,D-Adly,A Cannes 1997}) 13. Nc3 {[%emt 0:01:00]} Bb4 {[%emt 0:00:55]} 14. Kc2 {[%emt 0:04:30]} Rhe8 {[%emt 0:00:53]} 15. Rae1 {[%emt 0:02:06]} Nc6 {[%emt 0:00:17]} 16. Be3 {[%emt 0:06:08]} a6 {[%emt 0:15:04]} (16... Nd4+ $17 17. Kb1 Nxe2 18. Rxe2 Bxc3 19. bxc3 Nd5) 17. Rd1 {[%emt 0:08:05]} Bxc3 {[%emt 0:01:01]} 18. Rxd8+ {[%emt 0:01:32]} Nxd8 {[%emt 0:03:09]} 19. bxc3 {[%emt 0:02:08]} Ne6 {[%emt 0:00:18]} 20. Bc4 {[%emt 0:07:43]} Nd7 {[%emt 0:01:35]} 21. f4 {[%emt 0:01:08]} f6 {[%emt 0:04:37]} 22. Rg1 {[%emt 0:03:25]} g6 {[%emt 0:01:03]} 23. h4 {[%emt 0:01:22]} Ng7 {[%emt 0:01:40]} 24. Bd3 {[%emt 0:00:35]} f5 {[%emt 0:00:57]} 25. Be2 {[%emt 0:00:56]} Nf6 {[%emt 0:00:14]} 26. Bf3 {[%emt 0:00:34]} Ngh5 {[%emt 0:00:27]} 27. c4 {[%emt 0:02:59]} Re7 {[%emt 0:05:36]} 28. Kb3 {[%emt 0:05:26]} Rd7 {[%emt 0:04:27]} 29. Kc2 {[%emt 0:09:29]} Ng7 {[%emt 0:04:08]} 30. Rd1 {[%emt 0:01:56]} Rxd1 {[%emt 0:01:21]} 31. Bxd1 {[%emt 0:00:35]} Ne6 {[%emt 0:01:30]} 32. Bf3 {[%emt 0:00:59]} Nh5 {[%emt 0:00:13]} 33. Bxh5 {[%emt 0:00:36]} gxh5 {[%emt 0:00:05]} 34. f3 {[%emt 0:00:38]} Kd7 {[%emt 0:00:18]} 35. Kd3 {[%emt 0:01:40]} Kc6 {[%emt 0:00:09]} 36. a3 $11 {[%emt 0:01:03]} b5 {[%emt 0:01:25]} 37. Kc3 {[%emt 0:02:52]} 1/2-1/2

[Event "FIDE WCCC U10 2018"]
[Site "Santiago de Compostela"]
[Date "2018.11.14"]
[Round "10"]
[White "Erten, Kerem"]
[Black "Emrikian, Aren"]
[Result "1-0"]
[ECO "A06"]
[WhiteElo "1807"]
[BlackElo "1658"]
[Annotator "NA RC"]
[PlyCount "155"]
[EventDate "2018.11.04"]
[EventType "swiss"]
[EventCountry "ESP"]
[SourceTitle "playchess.com"]
[Source "ChessBase"]
[SourceQuality "1"]
[TimeControl "40/5400+30:1800+30"]

{[%evp 20,154,14,32767,0,32767,0,0,0,0,0,0,-7,-19,0,-6,0,-9,32767,32767,-15,-28,-29,-49,32767,36,20,32767,32767,32767,32767,40,38,37,32767,37,46,32767,2,6,4,3,32767,17,87,32767,32767,19,76,70,166,168,162,32767,32767,32767,160,153,181,32767,32767,48,125,129,167,128,164,32767,124,32767,106,32767,95,135,178,163,185,200,195,179,246,32767,268,268,261,258,271,393,407,717,32767,32767,32767,32767,32767,32767,32767,32767,32767,32767,32767,32767,1514,32767,32767,2073,32767,32767,32767,32767,32767,29981,12839,32767,32767,32767,32767,32767,32767,32767,32767,32767,32767,32767,32767,32767,32767,32767,32767,1995,29997,1995,32767,29998,29998,29999,29999]} 1. Nf3 {[%emt 0:00:00]} d5 {[%emt 0:00:00]} 2. b3 {[%emt 0:00:00]} c5 {[%emt 0:01:00]} 3. e3 {[%emt 0:00:00]} Nc6 {[%emt 0:01:00]} 4. Bb5 {[%emt 0:00:06]} Bd7 {[%emt 0:01:00]} 5. Bb2 {[%emt 0:00:49]} e6 {[%emt 0:01:09]} 6. O-O {[%emt 0:00:21]} Nf6 {[%emt 0:01:05]} 7. Bxc6 {[%emt 0:00:08]} Bxc6 {[%emt 0:00:32]} 8. Ne5 {[%emt 0:00:03]} Rc8 {[%emt 0:01:05]} 9. f4 {[%emt 0:02:45]} Be7 {[%emt 0:02:02]} 10. d3 {[%emt 0:00:35]} O-O {[%emt 0:02:12]} 11. Nd2 {[%emt 0:00:28]} d4 {[%emt 0:02:10] A03: Bird's Opening with 1...d5} 12. e4 {[%emt 0:00:48]} Be8 {[%emt 0:01:59]} 13. a4 {[%emt 0:00:59]} Nd7 {[%emt 0:02:03]} 14. Nxd7 $146 {[%emt 0:04:19]} ({Predecessor:} 14. Qg4 f5 15. Qh3 Nxe5 16. fxe5 g6 17. Nc4 Bc6 18. Rae1 Qd7 19. exf5 Rxf5 20. Rxf5 exf5 {0-1 (36) Dolezal,C (2435)-Macieja,B (2606) Burguillos 2008}) 14... Qxd7 {[%emt 0:01:14]} 15. Nc4 {[%emt 0:00:51]} f6 {[%emt 0:02:48]} 16. Qf3 {[%emt 0:08:41]} Bf7 {[%emt 0:04:22]} 17. Qg3 {[%emt 0:00:53]} Rfe8 {[%emt 0:06:08]} 18. Rae1 {[%emt 0:02:14]} b6 {[%emt 0:05:56]} 19. Bc1 {[%emt 0:00:50]} Qc7 {[%emt 0:03:16]} 20. Qh3 {[%emt 0:07:27]} a6 {[%emt 0:05:41]} 21. Nd2 {[%emt 0:03:02]} Bd6 {[%emt 0:06:14] [#]} 22. e5 $1 {[%emt 0:02:46]} Be7 {[%emt 0:05:41]} 23. exf6 {[%emt 0:03:00]} Bxf6 {[%emt 0:02:22]} 24. Ne4 {[%emt 0:00:30]} Qd8 {[%emt 0:03:58]} 25. f5 {[%emt 0:04:30]} exf5 {[%emt 0:04:06]} 26. Qxf5 {[%emt 0:00:12]} Bg6 {[%emt 0:02:12]} 27. Nxf6+ {[%emt 0:01:40]} Qxf6 {[%emt 0:03:29]} 28. Qd5+ {[%emt 0:04:21]} Bf7 {[%emt 0:01:15]} 29. Rxe8+ {[%emt 0:02:34]} Rxe8 {[%emt 0:00:13]} 30. Qb7 {[%emt 0:04:25]} Qg6 {[%emt 0:04:08]} 31. Bf4 {[%emt 0:13:40]} b5 {[%emt 0:08:05]} (31... h6 $11) 32. axb5 {[%emt 0:00:47]} axb5 {[%emt 0:00:14]} 33. Bg3 {[%emt 0:04:52]} ({Better is} 33. Qxb5 $16 Re2 34. Bg3) 33... b4 {[%emt 0:03:50]} (33... h5 $11) 34. Qc7 {[%emt 0:02:22]} Bd5 {[%emt 0:02:21]} (34... h5 $16 {was worth a try.}) 35. Qxc5 {[%emt 0:00:09]} Qc6 {[%emt 0:00:27]} 36. Qxc6 Bxc6 {[%emt 0:00:07]} 37. Re1 {[%emt 0:02:13]} Rd8 {[%emt 0:02:52]} 38. Re6 {[%emt 0:02:24]} Bb5 {[%emt 0:01:28]} 39. Rd6 {[%emt 0:00:52]} Rc8 {[%emt 0:00:13]} 40. Rd5 {[%emt 0:00:00]} Ba6 {[%emt 0:00:00]} ({Lieber} 40... Be8 $14) 41. Ra5 {[%emt 0:01:27]} ({Don't play} 41. Rxd4 Rxc2 42. Rd8+ (42. Rxb4 Bxd3 43. h3 Kf7 $14) 42... Kf7 $14) 41... Bb7 {[%emt 0:00:55]} 42. Ra2 {[%emt 0:00:18]} (42. Rb5 $18 Bc6 43. Rxb4) 42... Rd8 $1 $11 {[%emt 0:01:14] remains equal.} 43. Be5 {[%emt 0:02:58]} Rd5 {[%emt 0:01:15]} 44. Bg3 {[%emt 0:00:15]} Bc6 {[%emt 0:01:13]} 45. Bf2 {[%emt 0:01:22]} Kf7 {[%emt 0:01:16]} 46. Ra7+ {[%emt 0:00:23]} Kf8 {[%emt 0:00:47]} 47. Be1 {[%emt 0:01:36]} Rb5 {[%emt 0:02:03] [#]} 48. Rc7 $1 {[%emt 0:00:24]} Be8 {[%emt 0:00:55]} 49. Rc4 {[%emt 0:00:14]} Bf7 {[%emt 0:00:55]} (49... Kf7 $142 50. Bxb4 Rd5 51. Rc7+ Kf6) 50. Rxd4 {[%emt 0:00:18]} g6 {[%emt 0:00:36]} 51. Bxb4+ {[%emt 0:00:27]} Ke8 {[%emt 0:00:12]} 52. g3 {[%emt 0:01:14]} Rd5 {[%emt 0:00:20]} 53. Rxd5 {[%emt 0:00:06]} Bxd5 {[%emt 0:00:08]} 54. Kf2 {[%emt 0:00:06]} Kd7 {[%emt 0:00:07]} 55. Ke3 {[%emt 0:00:07]} Kc6 {[%emt 0:00:04]} 56. c4 {[%emt 0:00:08]} Bf7 {[%emt 0:00:03]} 57. Bc3 {[%emt 0:00:17]} Kc7 {[%emt 0:00:01]} 58. b4 {[%emt 0:00:10]} Kc6 {[%emt 0:00:03]} 59. Kd4 {[%emt 0:00:09]} Be6 {[%emt 0:00:05]} 60. b5+ {[%emt 0:00:13]} Kb7 $18 {[%emt 0:00:07]} (60... Kb6 $142 61. Bd2 Bf5) 61. Kc5 {[%emt 0:00:32]} Kc7 {[%emt 0:00:32]} 62. d4 {[%emt 0:00:12]} Bd7 {[%emt 0:00:03]} 63. Ba5+ {[%emt 0:00:19]} Kc8 {[%emt 0:00:05]} 64. Kd6 {[%emt 0:00:11]} Be8 {[%emt 0:00:04]} 65. Bd2 {[%emt 0:00:31]} Kb7 {[%emt 0:00:04]} 66. Ke7 {[%emt 0:00:09]} h5 {[%emt 0:00:08]} 67. Kxe8 {[%emt 0:00:05]} g5 {[%emt 0:00:03]} 68. c5 {[%emt 0:00:07]} h4 {[%emt 0:00:05]} 69. gxh4 {[%emt 0:00:04]} gxh4 {[%emt 0:00:03]} 70. Kd7 {[%emt 0:00:06]} Kb8 {[%emt 0:00:01]} 71. b6 {[%emt 0:00:13]} h3 {[%emt 0:00:02]} 72. c6 {[%emt 0:00:06]} Ka8 {[%emt 0:00:01]} 73. b7+ {[%emt 0:00:05]} Kb8 {[%emt 0:00:03]} 74. Bf4+ {[%emt 0:00:06]} Ka7 {[%emt 0:00:02]} 75. b8=Q+ {[%emt 0:00:10]} Ka6 {[%emt 0:00:01]} 76. c7 {[%emt 0:00:24]} Ka5 {[%emt 0:00:01]} 77. c8=Q {[%emt 0:00:11]} Ka4 {[%emt 0:00:01]} 78. Qa6# {[%emt 0:00:10]} 1-0

[Event "FIDE WCCC U10 2018"]
[Site "Santiago de Compostela"]
[Date "2018.11.14"]
[Round "10"]
[White "Todev, Simeon"]
[Black "Materia, Marco"]
[Result "0-1"]
[ECO "C94"]
[WhiteElo "1767"]
[BlackElo "2035"]
[Annotator "NA RC"]
[PlyCount "114"]
[EventDate "2018.11.04"]
[EventType "swiss"]
[EventCountry "ESP"]
[SourceTitle "playchess.com"]
[Source "ChessBase"]
[SourceQuality "1"]
[TimeControl "40/5400+30:1800+30"]

{[%evp 33,114,33,32767,32767,30,23,9,-20,-16,-58,-60,-112,-106,-265,-274,-325,-326,-333,-290,-325,-322,-333,-339,-350,-347,-452,-298,32767,-316,32767,-355,-436,-468,-406,-420,-437,32767,32767,32767,-602,32767,-332,-356,32767,-287,-487,32767,32767,32767,-147,-220,-122,32767,32767,32767,-968,-992,-558,-1922,-5065,32767,0,32767,32767,-25,-8,0,-12849,-12829,-29954,-29957,32767,32767,-29981,-29983,-29981,32767,32767,32767,-29986,-29988,-29988,-29989]} 1. e4 {[%emt 0:00:00]} e5 {[%emt 0:00:00]} 2. Nf3 {[%emt 0:00:00]} Nc6 {[%emt 0:00:00]} 3. Bb5 {[%emt 0:00:00]} a6 {[%emt 0:00:00]} 4. Ba4 {[%emt 0:00:00]} Nf6 {[%emt 0:00:07]} 5. O-O {[%emt 0:00:07]} Be7 {[%emt 0:00:06]} 6. Re1 {[%emt 0:00:03]} b5 {[%emt 0:00:06]} 7. Bb3 {[%emt 0:00:05]} d6 {[%emt 0:00:06]} 8. c3 {[%emt 0:00:26]} O-O {[%emt 0:00:33]} 9. h3 {[%emt 0:00:17]} Nb8 {[%emt 0:00:36]} 10. d3 {[%emt 0:00:33]} Nbd7 {[%emt 0:00:15]} 11. Nbd2 {[%emt 0:00:06]} Bb7 {[%emt 0:00:22] C94: Spanische Partie (Breyer-Variante)} 12. Bc2 {[%emt 0:00:33]} (12. Nf1 Nc5 13. Bc2 Re8 14. Ng3 Bf8 15. b4 Ncd7 16. a4 h6 17. d4 d5 18. dxe5 Nxe4 19. axb5 axb5 20. Rxa8 Bxa8 21. Bf4 c5 22. bxc5 Bxc5 23. Be3 Nxc3 {½-½ (41) Vidit,S (2707)-Yu,Y (2760) Liaocheng 2018}) 12... Re8 {[%emt 0:01:20]} 13. Nf1 {[%emt 0:00:36]} Bf8 {[%emt 0:00:18]} 14. Ng3 {[%emt 0:00:24]} g6 {[%emt 0:00:54]} 15. Bg5 $146 {[%emt 0:00:38]} ({Vorgänger:} 15. Bd2 c5 16. Qc1 d5 17. Bh6 dxe4 18. dxe4 Qe7 19. Nh4 Bxh6 20. Qxh6 {½-½ (49) Yeletsky,I (2344)-Matinian,N (2489) Samara 2016}) 15... h6 {[%emt 0:00:19]} 16. Be3 {[%emt 0:00:05]} Bg7 {[%emt 0:00:47]} 17. Qd2 {[%emt 0:00:56]} Kh7 {[%emt 0:00:20]} 18. a4 {[%emt 0:00:46]} d5 {[%emt 0:07:01]} 19. axb5 {[%emt 0:01:35]} axb5 {[%emt 0:01:03]} 20. Rad1 {[%emt 0:06:59]} c5 {[%emt 0:06:53]} 21. exd5 {[%emt 0:02:31]} Nxd5 {[%emt 0:00:29]} 22. Ne4 {[%emt 0:00:37]} Qc7 {[%emt 0:02:45]} 23. Bb3 {[%emt 0:03:25]} (23. c4 $17 {was necessary.} Nxe3 24. Qxe3) 23... f5 {[%emt 0:05:58]} 24. Neg5+ {[%emt 0:04:41]} hxg5 {[%emt 0:01:40]} 25. Nxg5+ {[%emt 0:00:26]} Kh8 {[%emt 0:00:58]} 26. Qe2 {[%emt 0:04:53]} N7f6 {[%emt 0:02:14]} 27. Bd2 {[%emt 0:05:06]} Nh5 {[%emt 0:12:01]} 28. Qf1 {[%emt 0:04:55]} Nhf4 {[%emt 0:02:13]} 29. Bxf4 {[%emt 0:00:26]} exf4 {[%emt 0:00:24]} 30. Ne6 {[%emt 0:01:00]} Qd6 {[%emt 0:01:17]} 31. Nxg7 {[%emt 0:01:05]} Kxg7 {[%emt 0:00:16]} 32. c4 {[%emt 0:00:49]} Nc7 {[%emt 0:00:45]} 33. d4 {[%emt 0:01:23]} Rxe1 {[%emt 0:00:43]} 34. Rxe1 {[%emt 0:00:21]} cxd4 {[%emt 0:00:45]} 35. cxb5 {[%emt 0:03:25]} d3 {[%emt 0:02:55]} 36. b6 d2 {[%emt 0:01:18]} 37. Rd1 {[%emt 0:01:31]} Qxb6 {[%emt 0:09:39]} 38. Qc4 {[%emt 0:02:33]} Rd8 {[%emt 0:05:08]} 39. Qxf4 {[%emt 0:04:47]} (39. Qf7+ {is a better defense.} Kh6 40. Qe7) 39... Qxb3 {[%emt 0:01:57]} 40. Qxc7+ {[%emt 0:00:00]} Kh6 {[%emt 0:00:00]} 41. Rxd2 {[%emt 0:00:49]} (41. Qxd8 $142 Qxd1+ 42. Kh2) 41... Rxd2 {[%emt 0:00:27]} 42. Qf4+ {[%emt 0:00:06]} g5 {[%emt 0:00:20]} 43. Qxd2 {[%emt 0:00:06]} Qd5 {[%emt 0:00:10]} 44. Qxd5 {[%emt 0:00:22]} Bxd5 {[%emt 0:00:05]} 45. Kh2 {[%emt 0:01:07]} f4 {[%emt 0:02:22]} 46. g3 {[%emt 0:00:37]} f3 {[%emt 0:00:35]} 47. g4 $1 {[%emt 0:00:13]} Kg6 {[%emt 0:00:44]} 48. Kg3 {[%emt 0:00:05]} Kf6 {[%emt 0:01:53]} 49. b4 {[%emt 0:00:30]} Ke5 {[%emt 0:02:57]} 50. b5 $2 {[%emt 0:00:21]} (50. h4 $11) 50... Kd4 {[%emt 0:01:07]} 51. h4 {[%emt 0:01:29]} gxh4+ {[%emt 0:00:24]} 52. Kxh4 {[%emt 0:00:13]} Kc5 {[%emt 0:00:09]} 53. g5 {[%emt 0:01:11]} (53. Kg5 Kxb5 54. Kf4 Kc4 55. Ke3 Kc5 56. g5 Kd6 57. Kf4 Ke6 58. g6 Kf6 59. g7 Kxg7 60. Kf5 Bb7 61. Kg5 Ba8 62. Kf5 Kh6 63. Kg4 Kg6 64. Kf4 Kf6 65. Ke3 Kf5 66. Kd2 Kg4 67. Ke3 Kh3 68. Kd4 Kg2 69. Kc4 Kxf2 70. Kb5 Ke1 71. Kc5 f2 72. Kd4 f1=Q 73. Ke5 Qf7 74. Kd6 Qd5+ 75. Ke7 Qe5+ 76. Kf7 Be4 77. Kf8 Qf6+ 78. Kg8 Qe7 79. Kh8 Qh7#) 53... Kxb5 {[%emt 0:00:20]} 54. Kg4 {[%emt 0:08:40]} Kc4 {[%emt 0:00:15]} 55. Kf4 {[%emt 0:00:10]} Kd3 {[%emt 0:00:07]} 56. g6 {[%emt 0:00:08]} Ke2 {[%emt 0:00:05]} 57. Kg3 {[%emt 0:00:04]} Ba2 {[%emt 0:00:07]} 0-1

[Event "FIDE WCCC U10 2018"]
[Site "Santiago de Compostela"]
[Date "2018.11.14"]
[Round "10"]
[White "Hladky, Tadeas"]
[Black "Xue, Haowen"]
[Result "0-1"]
[ECO "B22"]
[WhiteElo "1764"]
[BlackElo "2025"]
[Annotator "NA RC"]
[PlyCount "44"]
[EventDate "2018.11.04"]
[EventType "swiss"]
[EventCountry "ESP"]
[SourceTitle "playchess.com"]
[Source "ChessBase"]
[SourceQuality "1"]
[TimeControl "40/5400+30:1800+30"]

{[%evp 22,44,9,0,0,-22,-34,-58,-42,-64,-36,-67,-45,-74,-66,-98,-60,32767,-89,-606,32767,-452,-477,32767,-29999]} 1. e4 {[%emt 0:00:00]} c5 {[%emt 0:00:00]} 2. c3 {[%emt 0:00:00]} d5 {[%emt 0:00:00]} 3. exd5 {[%emt 0:00:00]} Qxd5 {[%emt 0:00:00]} 4. d4 {[%emt 0:00:00]} Nc6 {[%emt 0:00:04]} 5. Nf3 {[%emt 0:00:00]} Bg4 {[%emt 0:00:19]} 6. Be2 {[%emt 0:00:05]} cxd4 {[%emt 0:00:09]} 7. cxd4 {[%emt 0:00:30]} e6 {[%emt 0:00:33]} 8. Nc3 {[%emt 0:01:02]} Qa5 {[%emt 0:00:29]} 9. O-O {[%emt 0:01:55]} Nf6 {[%emt 0:00:25]} 10. h3 {[%emt 0:07:12]} Bh5 {[%emt 0:00:18]} 11. Be3 {[%emt 0:03:07]} Bd6 {[%emt 0:02:11]} 12. a3 {[%emt 0:15:13] LiveBook: 60 Games} O-O {[%emt 0:02:24]} 13. b4 {[%emt 0:03:03]} Qd8 {[%emt 0:00:56]} 14. Kh1 $146 {[%emt 0:02:20] B22: Sicilian: 2 c3} ({Predecessor:} 14. Qd2 Rc8 15. Rfd1 Nxb4 16. Rdb1 Nbd5 17. Nxd5 Nxd5 18. Rxb7 Rc7 19. Rxc7 Qxc7 20. Ne1 Bxe2 21. Qxe2 Qc3 {0-1 (40) Kantorik,M (2363)-Nisipeanu,L (2679) Legnica 2013}) 14... Bc7 {[%emt 0:13:15]} 15. Qb3 {[%emt 0:11:31]} h6 {[%emt 0:02:16]} 16. Rfd1 {[%emt 0:01:21]} Ne7 {[%emt 0:00:47]} ({Don't play} 16... Bxf3 $6 17. Bxf3 Ne7 18. Bxb7 $14) 17. Nb5 {[%emt 0:09:30]} Bb8 {[%emt 0:05:07]} 18. Rac1 {[%emt 0:07:05]} Nfd5 {[%emt 0:02:53]} 19. Ng1 {[%emt 0:05:36]} Nf5 {[%emt 0:11:01]} 20. g4 $2 {[%emt 0:12:00]} ({Don't blunder} 20. Bxh5 $2 Ndxe3 21. Re1 a6 $19) (20. Bd2 $17) 20... Ndxe3 {[%emt 0:04:02]} 21. fxe3 {[%emt 0:00:20]} Qh4 {[%emt 0:00:21]} (21... Ng3+ $2 22. Kg2 $19) 22. gxh5 {[%emt 0:06:19]} Qf2 {[%emt 0:00:17]} 0-1